{"text_format":"1","workbook":"xlsx","n_sheets":2,"sheets":["Прайс Основной","Распродажа"],"not_rendered":{"charts":0,"images":232,"macros":1,"external_links":0,"defined_names":0,"comments":0,"pivot_tables":0},"unopened":[],"bounds":{"document_bytes":16777216,"sheet_cells":100000,"rows_first":2000,"rows_last":500,"rows_between":2000,"halvings":0,"cell_chars":16384,"cell_head_chars":4096},"cells_cut":0,"cells_raw":0,"read":"whole","date_system":"1900"}

{"sheet":"Прайс Основной","index":0,"n_rows":174,"n_cols":18,"rows_kept":174,"cut":false,"hidden":false,"merged":[[7,13,8,13],[5,0,6,13],[0,12,4,13],[0,0,4,2],[0,3,0,6],[4,3,4,6],[1,3,1,6],[2,3,2,6],[3,3,3,6],[0,8,1,11],[2,8,4,11],[0,7,4,7],[7,11,9,11],[7,12,9,12],[7,0,9,0],[7,1,9,1],[7,10,9,10],[7,7,9,7],[7,8,9,8],[7,2,9,2],[7,3,9,4],[7,5,9,5],[7,6,9,6],[7,9,9,9],[10,0,10,13],[162,0,162,13],[42,0,42,13],[53,0,53,13],[68,0,68,13],[90,0,90,13],[94,0,94,13],[105,0,105,13],[146,0,146,13],[156,0,156,13],[124,0,124,13],[129,0,129,13],[26,0,26,13],[17,0,17,13]]}
[null,null,null,null,null,null,null,null,"01 октября 2023"]
[null,null,null,"\nООО «ТИМБЕРГРУПП»   г.Томск ул.Ивановского 6 стр.4\nОГРН: 1157017024493  ИНН/КПП 7017393384/701701001\n"]
[null,null,null,"www.timbergroup.ru",null,null,null,null,"info@timbergroup.ru"]
[null,null,null,"тел. +7 (3822) 20 21 83, +7 900 922 41 65"]
[null,null,null,"Игрушки, которые продаются"]
["Обратите внимание на вторую страницу \"Распродажа\". Количество товара ограниченно."]
[]
[null,"Фото","Наименование","Медиа",null,"Размер мм. ","Шт в коробке","от 100 т.р.","от 10 т.р.","до 10 т.р.","РРЦ","Описание","Штрих.код","ЗАКАЗ"]
[]
[null,null,null,null,null,null,null,null,null,null,null,null,null,{"$f":"IF(R10<10000,R10,IF(Q10<100000,Q10,IF(P10<300000,P10,O10)))","v":0},{"$f":"SUM(O12:O174)","v":{"$error":"#REF!"}},{"$f":"SUM(P12:P174)","v":0},{"$f":"SUM(Q12:Q174)","v":0},{"$f":"SUM(R12:R174)","v":0}]
["АППЛИКАЦИИ"]
[null,null,"IG0774 Развивающая игра \"Аппликация \"Кошечка\"","фото","видео","195*280*32           ",10,202,222,244,359,"Комплектность: 12 элементов ( основа, 10 плашек с выдавливаемыми элементами, клей ). Количество элементов аппликации 44.\nМатериал: дерево, клей ПВА.",4620070141593,null,{"$f":"#REF!*N12","v":{"$error":"#REF!"}},{"$f":"H12*N12","v":0},{"$f":"I12*N12","v":0},{"$f":"J12*N12","v":0}]
[null,null,"IG0775 Развивающая игра \"Аппликация \"Котик\"","фото","видео","195*280*32           ",10,202,222,244,359,"Комплектность: 12 элементов ( основа, 10 плашек с выдавливаемыми элементами, клей ). Количество элементов аппликации 25.\nМатериал: дерево, клей ПВА.",4620070141616,null,{"$f":"#REF!*N13","v":{"$error":"#REF!"}},{"$f":"H13*N13","v":0},{"$f":"I13*N13","v":0},{"$f":"J13*N13","v":0}]
[null,null,"IG0776 Развивающая игра \"Аппликация \"Машина\"","фото","видео","195*280*32           ",10,202,222,244,359,"Комплектность: 12 элементов ( основа, 10 плашек с выдавливаемыми элементами, клей ). Количество элементов аппликации 44.\nМатериал: дерево, клей ПВА.",4620070141609,null,{"$f":"#REF!*N14","v":{"$error":"#REF!"}},{"$f":"H14*N14","v":0},{"$f":"I14*N14","v":0},{"$f":"J14*N14","v":0}]
[null,null,"IG0777 Развивающая игра \"Аппликация \"Попугай\"","фото","видео","195*280*32           ",10,202,222,244,359,"Комплектность: 12 элементов ( основа, 10 плашек с выдавливаемыми элементами, клей ). Количество элементов аппликации 34.\nМатериал: дерево, клей ПВА.",4620070141623,null,{"$f":"#REF!*N15","v":{"$error":"#REF!"}},0,0,0]
[null,null,"IG0778 Развивающая игра \"Аппликация \"Динозавр\"","фото","видео","195*280*32           ",10,202,222,244,359,"Комплектность: 12 элементов ( основа, 10 плашек с выдавливаемыми элементами, клей ). Количество элементов аппликации 43.\nМатериал: дерево, клей ПВА.",4620070141630,null,{"$f":"#REF!*N16","v":{"$error":"#REF!"}},0,0,0]
[null,null,"IG0779 Развивающая игра \"Аппликация \"Самолет\"","фото","видео","195*280*32           ",10,202,222,244,359,"Комплектность: 12 элементов ( основа, 10 плашек с выдавливаемыми элементами, клей ). Количество элементов аппликации 38.\nМатериал: дерево, клей ПВА.",4620070141647,null,{"$f":"#REF!*N17","v":{"$error":"#REF!"}},0,0,0]
["КОНСТРУКТОРЫ",null,null,null,null,null,null,null,null,null,null,null,null,null,{"$f":"#REF!*N18","v":{"$error":"#REF!"}},0,0,0]
[null,null,"IG0619 Развивающая игра \"Деревянный конструктор \"Домик\"","фото",null,"Размер игрушки:\n130*90*190 \nРазмер коробки:\n120*160*50",10,274,301,331.5,499,"Комплектность: 67 элементов, инструкция по сборке, деревянная коробочка. \nМатериал: дерево, пластиковые болты, гайки. ",4620070141753,null,{"$f":"#REF!*N19","v":{"$error":"#REF!"}},0,0,0]
[null,null,"IG0618 Развивающая игра \"Деревянный конструктор \"Подъёмный кран\"","фото",null,"Размер игрушки:\n150*100*190 \nРазмер коробки:\n120*160*50",10,274,301,331.5,499,"Комплектность: 74 элемента, инструкция по сборке, деревянная коробочка. \nМатериал: дерево, пластиковые болты, гайки. ",4620070141746,null,{"$f":"#REF!*N20","v":{"$error":"#REF!"}},0,0,0]
[null,null,"IG0617 Развивающая игра \"Деревянный конструктор \"Мотоцикл\"","фото",null,"Размер игрушки:\n200*110*120 \nРазмер коробки:\n120*160*50",10,274,301,331.5,499,"Комплектность: 67 элементов, инструкция по сборке, деревянная коробочка. \nМатериал: дерево, пластиковые болты, гайки. ",4620070141739,null,{"$f":"#REF!*N21","v":{"$error":"#REF!"}},0,0,0]
[null,null,"IG0616 Развивающая игра \"Деревянный конструктор \"Машина\"","фото",null,"Размер игрушки:\n170*120*100 \nРазмер коробки:\n120*160*50",10,274,301,331.5,499,"Комплектность: 59 элементов, инструкция по сборке, деревянная коробочка. \nМатериал: дерево, пластиковые болты, гайки. ",4620070141722,null,{"$f":"#REF!*N22","v":{"$error":"#REF!"}},0,0,0]
[null,null,"IG0615 Развивающая игра \"Деревянный конструктор \"Самолет\"","фото",null,"Размер игрушки:\n190*210*180\nРазмер коробки:\n120*160*50",10,274,301,331.5,499,"Комплектность: 73 элемента, инструкция по сборке, деревянная коробочка. \nМатериал: дерево, пластиковые болты, гайки. ",4620070141715,null,{"$f":"#REF!*N23","v":{"$error":"#REF!"}},0,0,0]
[null,null,"IG0614 Развивающая игра \"Деревянный конструктор \"Динозавр\"","фото",null,"Размер игрушки:\n370*150*290\nРазмер коробки:\n220*160*50",6,459,505,555,829,"Комплектность: 163 элемента, инструкция по сборке, деревянная коробочка. \nМатериал: дерево, пластиковые болты, гайки. ",4620070141708,null,{"$f":"#REF!*N24","v":{"$error":"#REF!"}},0,0,0]
[null,null,"IG0613 Развивающая игра \"Деревянный конструктор \"Вертолет\"","фото",null,"Размер игрушки:\n290*300*150\nРазмер коробки:\n220*160*50",6,459,505,555,829,"Комплектность: 171 элемент, инструкция по сборке, деревянная коробочка. \nМатериал: дерево, пластиковые болты, гайки. ",4620070141692,null,{"$f":"#REF!*N25","v":{"$error":"#REF!"}},0,0,0]
[null,null,"IG0612 Развивающая игра \"Деревянный конструктор \"Эвакуатор\"","фото",null,"Размер игрушки:\n350*120*230\nРазмер коробки:\n220*160*75",3,660,715,803,1199,"Комплектность: 265 элементов, инструкция по сборке, деревянная коробочка. \nМатериал: дерево, пластиковые болты, гайки. ",4620070141678,null,{"$f":"#REF!*N26","v":{"$error":"#REF!"}},0,0,0]
["НОВИНКИ",null,null,null,null,null,null,null,null,null,null,null,null,null,{"$f":"#REF!*N27","v":{"$error":"#REF!"}},0,0,0]
[null,null,"IG0770 Развивающая игра \"Тетрисум\"","фото",null,"280*195*6",20,138.5,152.5,167.5,249,"Комплектность: 41 элемент ( 1 основа, 40 деталей ). Состав: дерево, краска акриловая.",4620070141548,null,{"$f":"#REF!*N28","v":{"$error":"#REF!"}},{"$f":"H28*N28","v":0},{"$f":"I28*N28","v":0},{"$f":"J28*N28","v":0}]
[null,null,"IG0790 Бизиборд \"500 эскимо\"","фото",null,"280*195*12",10,321,353,388,559,"Комплектность: 1 элемент (бизиборд с подвижными частями).\nМатериал: дерево с элементами из бумаги, полимерные материалы.",4620070141975,null,{"$f":"#REF!*N29","v":{"$error":"#REF!"}},{"$f":"H29*N29","v":0},{"$f":"I29*N29","v":0},{"$f":"J29*N29","v":0}]
[null,null,"IG0799 Рамка-вкладка \"Магнитная рыбалка \"Антивирус\"","фото",null,"280*195*10",20,237,261,287,429,"Комплектность: 11 элементов: 1 рамка вкладка, 9 вкладышей, 1 удочка. Материал: дерево с элементами из бумаги , магнит, шнурок,металл.",4620070141951,null,{"$f":"#REF!*N30","v":{"$error":"#REF!"}},0,0,0]
[null,null,"IG0786 Лабиринт \"Найди маму в Африке\"","фото",null,"280*195*15",20,221,243,267,399,"Комплектность: 1 элемент (доска с подвижными фишками). Материал: дерево с элементами из бумаги, полимерные материалы. ",4620070141920,null,{"$f":"#REF!*N31","v":{"$error":"#REF!"}},0,0,0]
[null,null,"IG0792 Лабиринт \"Найди маму в тайге\"","фото",null,"280*195*15",20,221,243,267,399,"Комплектность: 1 элемент (доска с подвижными фишками). Материал: дерево с элементами из бумаги, полимерные материалы. ",4620070141999,null,{"$f":"#REF!*N32","v":{"$error":"#REF!"}},0,0,0]
[null,null,"IG0787 Развивающая игра \"Тихий город\"","фото",null,"285*285*12\nв упаковке           ",10,274,301,331.5,499,"Комплектность:  14 элементов (13 деталей, 1 рамка-вкладка)\nМатериал: дерево, краска акриловая.",4620070141937,null,{"$f":"#REF!*N33","v":{"$error":"#REF!"}},0,0,0]
[null,null,"IG0788 Развивающая игра \"Яркий город\"","фото",null,"285*285*12\nв упаковке           ",10,274,301,331.5,499,"Комплектность:  14 элементов (13 деталей, 1 рамка-вкладка)\nМатериал: дерево, краска акриловая.",4620070141968,null,{"$f":"#REF!*N34","v":{"$error":"#REF!"}},0,0,0]
[null,null,"IG0793 Рамка-вкладка \"Овощи\"","фото",null,"280*195*6",20,111,122,134,199,"Количество  9 элементов (1 рамка вкладка, 8 вкладышей)\nМатериал: дерево с элементами из бумаги",4620070142002,null,{"$f":"#REF!*N35","v":{"$error":"#REF!"}},0,0,0]
[null,null,"IG0794 Рамка-вкладка \"Фрукты\"","фото",null,"280*195*6",20,111,122,134,199,"Количество  9 элементов (1 рамка вкладка, 8 вкладышей)\nМатериал: дерево с элементами из бумаги",4620070142019,null,{"$f":"#REF!*N36","v":{"$error":"#REF!"}},0,0,0]
[null,null,"IG0795 Рамка-вкладка \"Ягоды\"","фото",null,"280*195*6",20,111,122,134,199,"Количество  9 элементов (1 рамка вкладка, 8 вкладышей)\nМатериал: дерево с элементами из бумаги",4620070142026,null,{"$f":"#REF!*N37","v":{"$error":"#REF!"}},0,0,0]
[null,null,"IG0796 Рамка-вкладка \"Ферма\"","фото",null,"280*195*6",20,111,122,134,199,"Количество  9 элементов (1 рамка вкладка, 8 вкладышей)\nМатериал: дерево с элементами из бумаги",4620070142033,null,{"$f":"#REF!*N38","v":{"$error":"#REF!"}},0,0,0]
[null,null,"IG0797 Рамка-вкладка \"Животные\"","фото",null,"280*195*6",20,111,122,134,199,"Количество  9 элементов (1 рамка вкладка, 8 вкладышей)\nМатериал: дерево с элементами из бумаги",4620070142040,null,{"$f":"#REF!*N39","v":{"$error":"#REF!"}},0,0,0]
[null,null,"IG0798 Рамка-вкладка \"Фрукты-Овощи\"","фото",null,"Размер игрушки:\n360*230*190\nРазмер коробки:\n370*240*200",10,222,244,268,399,"Количество  18 элементов (2 рамки-вкладки, 16 вкладышей)\nМатериал: дерево с элементами из бумаги",4620070142057,null,{"$f":"#REF!*N40","v":{"$error":"#REF!"}},0,0,0]
[null,null,"IG0791 Рамка-вкладка \"Отличный набор!\"","фото",null,"Размер игрушки:\n360*230*190\nРазмер коробки:\n370*240*200",4,522,575,632,849,"Количество  45 элементов (5 рамкок-вкладок, 40 вкладышей)\nМатериал: дерево с элементами из бумаги",4620070141982,null,{"$f":"#REF!*N41","v":{"$error":"#REF!"}},0,0,0]
[null,null,"IG0782 Бизиборд \"Пожарная машина\"","фото",null,"Размер игрушки:\n360*230*190\nРазмер коробки:\n370*240*200",2,1999,2198,2419,3599,"Комплектность:  4 элемента (1 Бизиборд, 1 шнурок, 2 элемента на липучках)\nМатериал: дерево с элементами из бумаги, полимерный материал, текстильные материалы, металлическая фурнитура.",4620070141838,null,{"$f":"#REF!*N42","v":{"$error":"#REF!"}},0,0,0]
["АССОЦИАЦИИ И СОРТЕРЫ",null,null,null,null,null,null,null,null,null,null,null,null,null,{"$f":"#REF!*N43","v":{"$error":"#REF!"}},0,0,0]
[null,null,"IG0378  Развивающая игра \"Ассоциация Радуга\"","фото","видео","285* 195* 6",20,221,243,267,399,"Количество элементов: 26 (основа и 25 вкладышей).\nМатериал: дерево с элементами из бумаги.",4620070140343,null,{"$f":"#REF!*N44","v":{"$error":"#REF!"}},0,0,0]
[null,null,"IG0371 Развивающая игра \"Ассоциации Формы\"","фото","видео","285*285*6",20,240.9,265,291.5,429,"Количество элементов: 30.\nМатериал: дерево с элементами из бумаги",4620070140299,null,{"$f":"#REF!*N45","v":{"$error":"#REF!"}},0,0,0]
[null,null,"IG0051 Развивающая игра \"Ассоциации\"","фото","видео","285*285*6",20,240.9,265,291.5,429,"Количество элементов: 30.\nМатериал: дерево с элементами из бумаги",4631136133261,null,{"$f":"#REF!*N46","v":{"$error":"#REF!"}},0,0,0]
[null,null,"IG0151 Развивающая игра \"Ассоциации \"Природа\"","фото","видео","285*285*6",20,240.9,265,291.5,429,"Количество элементов: 30\nМатериал: дерево с элементами из бумаги",4631137476220,null,{"$f":"#REF!*N47","v":{"$error":"#REF!"}},0,0,0]
[null,null,"IG0188 Развивающая игра \"Ассоциации: Цвета\"","фото","видео","285*285*6",20,240.9,265,291.5,429,"Количество элементов: 30 Материал: дерево с элементами из бумаги",4631140325324,null,{"$f":"#REF!*N48","v":{"$error":"#REF!"}},0,0,0]
[null,null,"IG0189 Развивающая игра \"Ассоциации: Профессии\"","фото","видео","285*285*6",20,240.9,265,291.5,429,"Количество элементов: 30 Материал: дерево с элементами из бумаги",4631140325331,null,{"$f":"#REF!*N49","v":{"$error":"#REF!"}},0,0,0]
[null,null,"IG0165 Развивающая игра \"Сортер\"","фото","видео","290*90*55                                (38*38*3 размер элемента) ",20,398,438,482,719,"Комплектность: 24 элемента в деревянной коробке\nМатериал: дерево с элементами из бумаги",4631139617652,null,{"$f":"#REF!*N50","v":{"$error":"#REF!"}},0,0,0]
[null,null,"IG0747 Развивающая игра \"Сортер: Веселая компания\"","фото",null,"62*170*70",15,229,253,278,419,"Колличество элементов: 19 + коробка, состоящая из 2 элементов (древесина, полиграфия)\n",4620070141128,null,{"$f":"#REF!*N51","v":{"$error":"#REF!"}},0,0,0]
[null,null,"IG0748 Развивающая игра \"Сортер: Чудо-мир\"","фото",null,"62*170*70",15,229,253,278,419,"Колличество элементов: 19 + коробка, состоящая из 2 элементов (древесина, полиграфия)\n",4620070141173,null,{"$f":"#REF!*N52","v":{"$error":"#REF!"}},0,0,0]
[null,null,"IG0271 Развивающая игра \"Сортер: Окружающий мир\"","фото","видео","38*38*3 (Размер элемента), 190*80*70 (Размер упаковки) ",20,328,361,397,589,"Комплектность: 34 элемента в деревянной коробке.\nМатериал: дерево с элементами из бумаги",4631143756729,null,{"$f":"#REF!*N53","v":{"$error":"#REF!"}},0,0,0]
["ОБУЧАЮЩИЕ ДОСКИ",null,null,null,null,null,null,null,null,null,null,null,null,null,{"$f":"#REF!*N54","v":{"$error":"#REF!"}},0,0,0]
[null,null,"IG0765 Обучающая доска \"Веселое время\"","фото",null,"200*200*14",20,138.5,152.5,167.5,249,"Комплектность: 1 элемент (1 доска со стрелками)\nМатериал: древесина, полиграфия, металлические крепления.",4620070141487,null,{"$f":"#REF!*N55","v":{"$error":"#REF!"}},0,0,0]
[null,null,"IG0766 Обучающая доска \"Точное время\"","фото",null,"200*200*14",20,138.5,152.5,167.5,249,"Комплектность: 1 элемент (1 доска со стрелками)\nМатериал: древесина, полиграфия, металлические крепления.",4620070141494,null,{"$f":"#REF!*N56","v":{"$error":"#REF!"}},0,0,0]
[null,null,"IG0736 Обучающая доска \"Времена года\"","фото",null,"280*195*14",20,138.5,152.5,167.5,249,"Колличество элементов: 6 (1 деревянная основа с подвижными деталями, 5 пластик. грибков), \nматериалы: дерево с элементами из бумаги, пластик",4620070140961,null,{"$f":"#REF!*N57","v":{"$error":"#REF!"}},0,0,0]
[null,null,"IG0014 Развивающая игрушка \"Часы\"","фото","видео","195*280*5",20,138.5,152.5,167.5,249,"Комплектность: 1 элемент (деревянный планшет с подвижными элементами)\nМатериал: дерево с элементами из бумаги, полимерные материалы",4631136105718,null,{"$f":"#REF!*N58","v":{"$error":"#REF!"}},0,0,0]
[null,null,"IG0041 Обучающая доска «Календарь»","фото","видео","195*280*5",20,138.5,152.5,167.5,249,"Комплектность: 3 элемента (деревянный планшет с подвижными элементами и 2 вставочных элемента).",4631136133087,null,{"$f":"#REF!*N59","v":{"$error":"#REF!"}},0,0,0]
[null,null,"IG0058 Обучающая доска \"Календарь с часами\"","фото","видео","285*285*5",20,202,222,244,359,"Комплектность: 5 элементов (деревянный планшет и 4 вставочных элемента)\nМатериал: дерево с элементами из бумаги, полимерные материалы\n","4631136133339",null,{"$f":"#REF!*N60","v":{"$error":"#REF!"}},0,0,0]
[null,null,"IG0199 Обучающая доска \"Календарь с часами: Машинка\"","фото","видео","285*285*5",20,202,222,244,359,"Комплектность: 5 элементов (деревянный планшет с подвижными элементами и 4 вставочных элемента)\nМатериал: дерево с элементами из бумаги, полимерные материалы\n","4631140325430",null,{"$f":"#REF!*N61","v":{"$error":"#REF!"}},0,0,0]
[null,null,"IG0200 Обучающая доска \"Календарь с часами: Цветочек\"","фото","видео","285*285*5",20,202,222,244,359,"Комплектность: 5 элементов (деревянный планшет с подвижными элементами и 4 вставочных элемента)\nМатериал: дерево с элементами из бумаги, полимерные материалы\n","4631140325447",null,{"$f":"#REF!*N62","v":{"$error":"#REF!"}},0,0,0]
[null,null,"IG0257 Обучающая доска \"Белкин сон.\"","фото","видео","140*195*6",20,111,122,134,199,"Комплектность: 4 элемента (деревянный планшет с подвижными элементами и 3 вставочных элемента)\nМатериал: дерево с элементами из бумаги, полимерные материалы\n","4631142066973",null,{"$f":"#REF!*N63","v":{"$error":"#REF!"}},0,0,0]
[null,null,"IG0264 Обучающая доска \"Диноленд\"","фото","видео","140*195*6",20,111,122,134,199,"Комплектность: 3 элемента (деревянный планшет с подвижными элементами и 2 вставочных элемента)\nМатериал: дерево с элементами из бумаги, полимерные материалы\n","4631142187371",null,{"$f":"#REF!*N64","v":{"$error":"#REF!"}},0,0,0]
[null,null,"IG0266 Обучающая доска \"Машина времени\"","фото","видео","185*140*5",20,111,122,134,199,"Комплектность: 3 элемента (деревянный планшет с подвижными элементами и 2 вставочных элемента). Материал: дерево с элементами из бумаги, полимерные материалы.","4631142343586",null,{"$f":"#REF!*N65","v":{"$error":"#REF!"}},0,0,0]
[null,null,"IG0721 Обучающая доска «Календарь природы»","фото","видео","280*195*18",15,175,193,212,309,"Комплектность: 4 фиксатора, 1 шнурок, 2 бусины.\nДерево, полиграфия, фиксаторы, бусины, шнурки",4620070140770,null,{"$f":"#REF!*N66","v":{"$error":"#REF!"}},0,0,0]
[null,null,"IG0722 Обучающая доска «Планшет: Алфавит на магнитах»","фото","видео","280*195*10",10,434.5,478,525,790,"Колличество элементов:59 (1 основа, 54 буквы, 1 магнит, 1 шаблон, 1 пакет)\nматериалы: дерево с элементами из бумаги, виниловый магнит, пластик.",4620070140695,null,{"$f":"#REF!*N67","v":{"$error":"#REF!"}},0,0,0]
[null,null,"IG0737 Обучающая доска «Планшет: Алфавит на магнитах, красный»","фото","видео","280*195*10",10,434.5,478,525,790,"Колличество элементов:59 (1 основа, 54 буквы, 1 магнит, 1 шаблон, 1 пакет)\nматериалы: дерево с элементами из бумаги, виниловый магнит, пластик.",4620070140947,null,{"$f":"#REF!*N68","v":{"$error":"#REF!"}},0,0,0]
["БИЗИБОРДЫ",null,null,null,null,null,null,null,null,null,null,null,null,null,{"$f":"#REF!*N69","v":{"$error":"#REF!"}},0,0,0]
[null,null,"IG0350 Бизиборд \"Поваренок\"","фото","видео","195*140*22",10,229,253,278,419,"Комплектность: 1 элемент (бизиборд с подвижными частями).\nМатериал: дерево с элементами из бумаги, полимерные и текстильные материалы, металл.",4620070140046,null,{"$f":"#REF!*N70","v":{"$error":"#REF!"}},0,0,0]
[null,null,"IG0351 Бизиборд \"Мастерская\"","фото","видео","195*140*22",10,229,253,278,419,"Комплектность: 1 элемент (бизиборд с подвижными частями).\nМатериал: дерево с элементами из бумаги, полимерные и текстильные материалы, металл.",4620070140053,null,{"$f":"#REF!*N71","v":{"$error":"#REF!"}},0,0,0]
[null,null,"IG0364 Бизиборд \"Лесные приключения\"","фото","видео","195*140*22",10,229,253,278,419,"\nКомплектность: 1 элемент (бизиборд с подвижными частями).\nМатериал: дерево с элементами из бумаги, полимерные и текстильные материалы, металл.",4620070140206,null,{"$f":"#REF!*N72","v":{"$error":"#REF!"}},0,0,0]
[null,null,"IG0361 Бизиборд \"Кораблик\"","фото","видео","195*140*22",10,229,253,278,419,"Комплектность: 1 элемент (бизиборд с подвижными частями).\nМатериал: дерево с элементами из бумаги, полимерные и текстильные материалы, металл.",4620070140152,null,{"$f":"#REF!*N73","v":{"$error":"#REF!"}},0,0,0]
[null,null,"IG0362 Бизиборд \"Паровозик\"","фото","видео","195*140*22",10,229,253,278,419,"Комплектность: 1 элемент (бизиборд с подвижными частями).\nМатериал: дерево с элементами из бумаги, полимерные и текстильные материалы, металл.",4620070140176,null,{"$f":"#REF!*N74","v":{"$error":"#REF!"}},0,0,0]
[null,null,"IG0732 Бизиборд \"Робот-мастер\"","фото","видео","140*200*10",10,229,253,278,419,"Колличество элементов: 1 доска с подвижными деталями,  \nматериалы: дерево с элементами из бумаги, пластик. фиксаторы, фетр",4620070140886,null,{"$f":"#REF!*N75","v":{"$error":"#REF!"}},0,0,0]
[null,null,"IG0379 Бизиборд \"Кто живет на дереве?\"","фото","видео","195*280*18",10,339,374,412,599,"Комплектность: 1 элемент (бизиборд с подвижными частями).\nМатериал: дерево с элементами из бумаги, полимерные и текстильные материалы, металл.",4620070140350,null,{"$f":"#REF!*N76","v":{"$error":"#REF!"}},0,0,0]
[null,null,"IG0376 Бизиборд \"Остров сокровищ\"","фото","видео","195*280*18",10,339,374,412,599,"Комплектность: 1 элемент (бизиборд с подвижными частями).\nМатериал: дерево с элементами из бумаги, полимерные и текстильные материалы, металл.",4620070140244,null,{"$f":"#REF!*N77","v":{"$error":"#REF!"}},{"$f":"H77*N77","v":0},{"$f":"I77*N77","v":0},{"$f":"J77*N77","v":0}]
[null,null,"IG0728 Бизиборд \"В гостях у звездочета\"","фото","видео","280*195*14",10,339,374,412,599," Колличество элементов: (1 доска с подвижными эл-ми, 6 съёмных деталей) материалы: дерево с элементами из бумаги, пэт, фиксаторы, липучки",4620070140893,null,{"$f":"#REF!*N78","v":{"$error":"#REF!"}},0,0,0]
[null,null,"IG0717 Бизиборд «Снежные выходные»","фото","видео","285*280*16",15,497,547,602,900,"Комплектность: 17 фиксаторов, 1 шарик, пэт, клепки 4, 1 петля\n\nДерево, полиграфия, фиксаторы, металлический шарик, пэт, клёпки, петля",4620070140794,null,{"$f":"#REF!*N79","v":{"$error":"#REF!"}},0,0,0]
[null,null,"IG0749 Бизиборд \"Крестики и гномики\"","фото","видео ","100*95*95",6,339,374,412,599,"Колличество элементов: 10 + кубик-сортер (древесина, металлические крепления)\n",4620070141159,null,{"$f":"#REF!*N80","v":{"$error":"#REF!"}},0,0,0]
[null,null,"IG0740 Бизиборд \"Котокубик\"","фото","видео","110*110*110",6,475,522,574,799,"дерево с элементами из бумаги, металла, текстиля, полимерных материалов,металлической фурнитуры.",4620070141135,null,{"$f":"#REF!*N81","v":{"$error":"#REF!"}},0,0,0]
[null,null,"IG0289 Развивающая игра \"Бизи-домик\"","фото","видео","150*110*115",6,660,715,803,1199,"Комплектность: 5 элементов (бизи-домик, 1 шнурок, 3 резинки для банкнот). Материал: дерево с элементами из бумаги, текстильные и полимерные материалы, металлическая фурнитура, резина.","4631144708765",null,{"$f":"#REF!*N82","v":{"$error":"#REF!"}},0,0,0]
[null,null,"IG0290 Развивающая игра \"Бизи-кубик\"","фото","видео","100*100*100",6,660,715,803,1199,"Комплектность: 4 элемента (бизи-кубик, 3 резинки для банкнот). Материал: дерево с элементами из бумаги, текстильные и полимерные материалы, металлическая фурнитура, резина.","4631144708772",null,{"$f":"#REF!*N83","v":{"$error":"#REF!"}},0,0,0]
[null,null,"IG0291 Развивающая игра \"Бизи-машинка\"","фото","видео","170*85*95",6,660,715,803,1199,"Комплектность: 4 элемента (бизи-машинка, 3 резинки для банкнот). Материал:  дерево с элементами из бумаги, металла, текстиля, полимерных материалов,металлической фурнитуры.","4631145412753",null,{"$f":"#REF!*N84","v":{"$error":"#REF!"}},0,0,0]
[null,null,"IG0253 Развивающая игра \"Бизиборд: Обучайка\"","фото","видео","420*295*305",2,1085,1192,1311,1799,"Комплектность:  64 элемента. Материал: дерево с элементами из бумаги, полимерные материалы, металл.","4631141655000",null,{"$f":"#REF!*N85","v":{"$error":"#REF!"}},0,0,0]
[null,null,"IG0739 Бизиборд \"Яркий\"","фото",null,"261*248*232 ( в собранном виде )",2,1683,1851,2036,2699,"дерево с элементами из бумаги, полимерный материал, текстильные материалы, металлическая фурнитура.   ",4620070140992,null,{"$f":"#REF!*N86","v":{"$error":"#REF!"}},0,0,0]
[null,null,"IG0742 Бизиборд \"Цирк\"","фото",null,"261*248*232 ( в собранном виде )",2,1683,1851,2036,2699,"дерево с элементами из бумаги, полимерный материал, текстильные материалы, металлическая фурнитура. ",4620070141074,null,{"$f":"#REF!*N87","v":{"$error":"#REF!"}},0,0,0]
[null,null,"IG0718 Бизиборд «Играйка»","фото","видео","290*260*100 ",2,1852,2038,2242,3366,"Комплектность: 7 бусин, 2 шнурка, 2 липучки, 34 фиксатора, 2 шарика, пэт, 13 клепок, 1 петля, 1 нитка, 1 магнит, 1 замок, меловая наклейка. Дерево, полиграфия, бусины, шнурки, липучки, фиксаторы, металлические шарики, пэт, клёпки, петля, нитка, магнит, замок, меловая наклейка",4620070140800,null,{"$f":"#REF!*N88","v":{"$error":"#REF!"}},0,0,0]
[null,null,"IG0269 Бизиборд \"Я - строитель\"","фото","видео","440*310*360",2,2852.3,3137.53,3451.3,3889.5,"Комплектность: 18 элементов ( 6 игровых панелей, 12+1 фиксаторов для сборки). Материал: дерево с элементами из бумаги, полимерный материал,текстильные материалы, металлическая фурнитура.","4631143187042",null,{"$f":"#REF!*N89","v":{"$error":"#REF!"}},0,0,0]
[null,null,"IG0324 Развивающая игра \"Кухня\"","фото","видео","1046*684*415",1,5170,5600,6100,8000,"19 элементов каркаса, 187 ед. полимерной и металлической фурнитуры, кран, раковина. Материал: дерево, металл, полимерные материалы.",4631145505578,null,{"$f":"#REF!*N90","v":{"$error":"#REF!"}},0,0,0]
["ШНУРОВКИ",null,null,null,null,null,null,null,null,null,null,null,null,null,{"$f":"#REF!*N91","v":{"$error":"#REF!"}},0,0,0]
[null,null,"IG0735 Шнуровка \"Увлекательная шнуровка\"","фото","видео","145*145*22",20,86,95,105,159,"Колличество элементов: 6 (1 деревянная основа, 5 шнурков)\nматериалы: дерево, текстильные шнурки",4620070140978,null,{"$f":"#REF!*N92","v":{"$error":"#REF!"}},0,0,0]
[null,null,"IG0071 Шнуровка \"Ежик\"","фото","видео","190*140*6",20,131,145,160,239,"Комплектность: 7 элементов  (основа, 5 накладных элементов, шнурок). Материал: дерево с элементами из бумаги, текстиль.","4631136359647",null,{"$f":"#REF!*N93","v":{"$error":"#REF!"}},0,0,0]
[null,null,"IG0072 Шнуровка \"Дерево\"","фото","видео","200*180*6",20,131,145,160,239,"Комплектность: 6 элементов  (основа, 4 накладных элемента, шнурок). Материал: дерево с элементами из бумаги, текстиль.","4631136359654",null,{"$f":"#REF!*N94","v":{"$error":"#REF!"}},0,0,0]
["РАМКИ ВКЛАДКИ",null,null,null,null,null,null,null,null,null,null,null,null,null,{"$f":"#REF!*N95","v":{"$error":"#REF!"}},0,0,0]
[null,null,"IG0727 Развивающая игра \"Ловец бабочек\"","фото","видео","280*195*12",20,274,301,331.5,499,"Колличество элементов: 25 (1 доска с лупами, 24 детали пазла), дерево с элементами из бумаги, шнурок",4620070140879,null,{"$f":"#REF!*N96","v":{"$error":"#REF!"}},0,0,0]
[null,null,"IG0733 Рамка-вкладка \"Модница\"","фото","видео","122*155*40",10,274,301,331.5,499,"Колличество элементов: 20 (коробка-основа (2эл.), 18 деталей), \nматериалы: дерево с элементами из бумаги",4620070140930,null,{"$f":"#REF!*N97","v":{"$error":"#REF!"}},0,0,0]
[null,null,"IG0382 Магнитная рыбалка \"Случай на ферме\"","фото","видео","280*195*6",20,237,261,287,429,"Комплектность: 11 элементов: 1 рамка вкладка, 9 вкладышей, 1 удочка. Материал: дерево с элементами из бумаги , магнит, шнурок,металл.",4620070140381,null,{"$f":"#REF!*N98","v":{"$error":"#REF!"}},0,0,0]
[null,null,"IG0175 Обучающая доска «Кот-рыбак»","фото","видео","195*280*6",20,221,243,267,399,"Комплектность: 8 элементов (1 рамка-вкладка, 6 вкладышей, 1 деревянная удочка)\nМатериал: дерево с элементами из бумаги, магниты, текстильные материалы,металл.\n","4631136867197",null,{"$f":"#REF!*N99","v":{"$error":"#REF!"}},0,0,0]
[null,null,"IG0019 Рамка-вкладка \"Рыбалка\" 3","фото","видео","210*200*6",20,221,243,267,399,"Комплектность: 8 элементов: 1 рамка вкладка, 6 вкладышей, 1 удочка. Материал: дерево с элементами из бумаги , магнит, шнурок,металл.","4631136105770",null,{"$f":"#REF!*N100","v":{"$error":"#REF!"}},0,0,0]
[null,null,"IG0719 Развивающая игра \"Мозаика Малыши и кругляши\"","фото","видео","170*155*25",10,344,379,416,600,"Комплектность: 37 зл (1 мешок, 4 доски, 32 детали); Состав: Дерево, полиграфия, мешок.",4620070140725,null,{"$f":"#REF!*N101","v":{"$error":"#REF!"}},0,0,0]
[null,null,"IG0720 Развивающая игра \"Квадраты Никитина\"","фото","видео","195*130*13",15,175,193,212,309,"Количество элементов: 32 (2 доски и 30 деталей). Материал: Дерево, полиграфия.",4620070140749,null,{"$f":"#REF!*N102","v":{"$error":"#REF!"}},0,0,0]
[null,null,"IG0763 Развивающая игра \"Квадраты Никитина, 2\"","фото","видео","195*130*13",15,175,193,212,309,"Комплектность: 50 элементов (2 деревянные основы, 48 отдельных деталей).\nМатериал: древесина, полиграфия.",4620070141463,null,{"$f":"#REF!*N103","v":{"$error":"#REF!"}},0,0,0]
[null,null,"IG0764 Развивающая игра \"Квадраты Никитина, 3\"","фото","видео","195*130*13",15,175,193,212,309,"Комплектность: 66 элемента (2 деревянные основы, 64 отдельных деталей).\nМатериал: древесина, полиграфия.",4620070141470,null,{"$f":"#REF!*N104","v":{"$error":"#REF!"}},0,0,0]
[null,null,"IG0771 Развивающая игра \"Квадраты Никитина, набор\"","фото","видео ","195*130*40",5,459,505,555,829,"Комплектность: 148 элемента (6 деревянных основ, 142 отдельные детали).\nМатериал: древесина, полиграфия.",4620070141562,null,{"$f":"#REF!*N105","v":{"$error":"#REF!"}},0,0,0]
["ЛАБИРИНТЫ",null,null,null,null,null,null,null,null,null,null,null,null,null,{"$f":"#REF!*N106","v":{"$error":"#REF!"}},0,0,0]
[null,null,"IG0757 Лабиринт с шариком \"Нямки-Нямки\"","фото",null,"200*220*9",20,229,253,278,419,"Комплектность: 1 элемент (1 деревянная основа с металлическим шариком)\nМатериал: древесина, полиграфия, металлический шарик, ПЭТ, пластиковые крепления.",4620070141401,null,{"$f":"#REF!*N107","v":{"$error":"#REF!"}},0,0,0]
[null,null,"IG0758 Лабиринт с шариком \"Лумпа-Вумпа\"","фото",null,"200*220*9",20,229,253,278,419,"Комплектность: 1 элемент (1 деревянная основа с металлическим шариком)\nМатериал: древесина, полиграфия, металлический шарик, ПЭТ, пластиковые крепления.",4620070141418,null,{"$f":"#REF!*N108","v":{"$error":"#REF!"}},0,0,0]
[null,null,"IG0761 Лабиринт с шариком \"Охотник за сокровищами\"","фото",null,"200*220*9",20,229,253,278,419,"Комплектность: 1 элемент (1 деревянная основа с металлическим шариком)\nМатериал: древесина, полиграфия, металлический шарик, ПЭТ, пластиковые крепления.",4620070141449,null,{"$f":"#REF!*N109","v":{"$error":"#REF!"}},0,0,0]
[null,null,"IG0762 Лабиринт с шариком \"Для Мейбл\"","фото",null,"140*140*13",10,202,222,244,359,"Комплектность: 1 элемент (1 деревянная основа с металлическим шариком)\nМатериал: древесина, металлический шарик, ПЭТ, пластиковые крепления.",4620070141456,null,{"$f":"#REF!*N110","v":{"$error":"#REF!"}},0,0,0]
[null,null,"IG0383 Лабиринт \"Пчелка\"","фото","видео","195*140*9",20,175,193,212,309,"Комплектность: 1 элемент (игровое поле с шариком двигающимся по пазам). Материал: дерево с элементами из бумаги, металл, полимерные материалы.",4620070140398,null,{"$f":"#REF!*N111","v":{"$error":"#REF!"}},0,0,0]
[null,null,"IG0258 Лабиринт с шариком \"Телепорт\" (двусторонний)","фото","видео","100*140*15",20,145,159,175,259,"Комплектность: 1 элемент  (игровое поле с шариком двигающимся по пазам). Материал: дерево с элементами из бумаги, металл, полимерные материалы.","4631142066980",null,{"$f":"#REF!*N112","v":{"$error":"#REF!"}},0,0,0]
[null,null,"IG0347 Лабиринт с шариком \"Кошки-мышки\"","фото","видео","110*140*11",20,145,159,175,259,"Количество элементов: 1 (шарик, двигающийся по пазам)\nМатериал: дерево с элементами из бумаги.",4620070140015,null,{"$f":"#REF!*N113","v":{"$error":"#REF!"}},0,0,0]
[null,null,"IG0386 Лабиринт с шариком \"В горах\" (двусторонний)","фото","видео","110*140*11",20,145,159,175,259,"Количество элементов: 1 (шарик, двигающийся по пазам)\nМатериал: дерево с элементами из бумаги.",4620070140411,null,{"$f":"#REF!*N114","v":{"$error":"#REF!"}},0,0,0]
[null,null,"IG0387 Лабиринт с шариком \"Динозавра\"","фото","видео","195*140*9",20,202,222,244,359,"Комплектность: 1 элемент (игровое поле с шариком двигающимся по пазам). Материал: дерево с элементами из бумаги, металл, полимерные материалы.",4620070140428,null,{"$f":"#REF!*N115","v":{"$error":"#REF!"}},0,0,0]
[null,null,"IG0049 Лабиринт с шариком \"Идем в школу\"","фото","видео","200* 220 *9",20,229,253,278,419,"Комплектность: 1 элемент  (игровое поле с шариком двигающимся по пазам). Материал: дерево с элементами из бумаги, металл, полимерные материалы.",4631136133247,null,{"$f":"#REF!*N116","v":{"$error":"#REF!"}},0,0,0]
[null,null,"IG0259 Лабиринт с шариком \"Паутинка\"","фото","видео","200* 220 *9",20,229,253,278,419,"Комплектность: 1 элемент  (игровое поле с шариком двигающимся по пазам). Материал: дерево с элементами из бумаги, металл, полимерные материалы.","4631142066997",null,{"$f":"#REF!*N117","v":{"$error":"#REF!"}},0,0,0]
[null,null,"IG0349 Лабиринт с шариком \"Техас\"","фото","видео","200*220*9",20,229,253,278,419,"Комплектность: 1 элемент \n(игровое поле с шариком двигающимся по пазам).\nМатериал: дерево с элементами из бумаги, металл, полимерные материалы.",4620070140039,null,{"$f":"#REF!*N118","v":{"$error":"#REF!"}},0,0,0]
[null,null,"IG0754 Лабиринт \"Агусики\"","фото",null,"138*195*19",15,157,173,190,279,"Комплектность: 1 элемент (доска с подвижными фишками). Материал: дерево с элементами из бумаги, полимерные материалы. ",4620070141272,null,{"$f":"#REF!*N119","v":{"$error":"#REF!"}},0,0,0]
[null,null,"IG0752 Лабиринт \"Угадай сказку\"","фото","видео","280*195*15",20,229,253,278,419,"Комплектность: 1 элемент (доска с подвижными фишками). Материал: дерево с элементами из бумаги, полимерные материалы. ",4620070141258,null,{"$f":"#REF!*N120","v":{"$error":"#REF!"}},0,0,0]
[null,null,"IG0705 Лабиринт \"Кто что ест в лесу\"","фото","видео","280*195*15",20,229,253,278,419,"Комплектность: 1 элемент (доска с подвижными фишками). Материал: дерево с элементами из бумаги, полимерные материалы. ",4620070140596,null,{"$f":"#REF!*N121","v":{"$error":"#REF!"}},0,0,0]
[null,null,"IG0059 Лабиринт \"На ферме\"","фото","видео","280*195*15",20,229,253,278,419,"Комплектность: 1 элемент (доска с подвижными фишками). Материал: дерево с элементами из бумаги, полимерные материалы. ","4631136133346",null,{"$f":"#REF!*N122","v":{"$error":"#REF!"}},0,0,0]
[null,null,"IG0186 Лабиринт \"Дети-пираты\"","фото","видео","280*195*15",20,229,253,278,419,"Комплектность: 1 элемент (доска с подвижными фишками). Материал: дерево с элементами из бумаги, полимерные материалы.\n","4631140325300",null,{"$f":"#REF!*N123","v":{"$error":"#REF!"}},0,0,0]
[null,null,"IG0716 Лабиринт «Дино на прогулке»","фото","видео","220*200*10 ",20,237,261,287,429,"Комплектность: 1 элемент (1 доска с магнитной ручкой на шнурке);\nДерево, полиграфия, фиксаторы, металлические шарики, магнит, нитка, пэт",4620070140763,null,{"$f":"#REF!*N124","v":{"$error":"#REF!"}},0,0,0]
["ПОЛУШАРНЫЕ ДОСКИ",null,null,null,null,null,null,null,null,null,null,null,null,null,{"$f":"#REF!*N125","v":{"$error":"#REF!"}},0,0,0]
[null,null,"IG0388 Лабиринт \"Межполушарные доски\"(набор 3 шт.)","фото","видео","280*135*20 (размер одной доски)",5,459,505,555,829,"Комплектность: 3 доски.\nМатериал: дерево с элементами из бумаги.",4620070140435,null,{"$f":"#REF!*N126","v":{"$error":"#REF!"}},0,0,0]
[null,null,"IG0323 Лабиринт \"Полушарные доски\" (набор 3 шт.)","фото","видео","280*135*20 (размер одной доски)",5,459,505,555,829,"Комплектность: 3 элемента (3 доски с подвижными фишками). Материал: дерево с элементами из бумаги, полимерные материалы. ",4631145475857,null,{"$f":"#REF!*N127","v":{"$error":"#REF!"}},0,0,0]
[null,null,"IG0392 Межполушарные доски \"Мышление\" (набор 2 шт)","фото","видео","280*135*20 (размер одной доски)",5,400,438,481,729,"Комплектность: 4 элемента (2 доски с 2 подвижными фишками). Материал: дерево с элементами из бумаги, полимерные материалы. ",4620070140480,null,{"$f":"#REF!*N128","v":{"$error":"#REF!"}},0,0,0]
[null,null,"IG0353 Лабиринт \"Полушарная доска №2\"","фото","видео","285*285*15",20,344,379,416,600,"Комплектность: 1 элемент (1 доска с подвижными фишками).\nМатериал: дерево с элементами из бумаги.",4620070140077,null,{"$f":"#REF!*N129","v":{"$error":"#REF!"}},0,0,0]
["НАСТОЛЬНЫЕ ИГРЫ",null,null,null,null,null,null,null,null,null,null,null,null,null,{"$f":"#REF!*N130","v":{"$error":"#REF!"}},0,0,0]
[null,null,"IG0609 Развивающая игра \"Менталам\"","фото","https://mentalam.ru/","190*190*60",5,935,1050,1150,"2 000,00","Комплектность: 10 элементов из которых 8 элементов (подставка с зеркалом), фишки 2 комплекта.\nМатериал: Дерево с элементами из бумаги, полимерные материалы.",4620070141364,null,{"$f":"#REF!*N131","v":{"$error":"#REF!"}},0,0,0]
[null,null,"IG0755 Развивающая игра \"Угадай столицу\"","фото",null,"50*80*200",10,357,393,432,600,"Комплектность: 54 элементов (коробка из 2 элементов, 52 карточки).\nМатериал: Дерево с элементами из бумаги.",4620070141289,null,{"$f":"#REF!*N132","v":{"$error":"#REF!"}},0,0,0]
[null,null,"IG0768 Развивающая игра \"Топдесять, ярко\"","фото","видео","140*140*30",20,175,192,212,309,"Комплектность: 22 элемента (коробка из 2 элементов, 20 деталей).\nМатериал: Дерево с элементами из полиграфии.",4620070141517,null,{"$f":"#REF!*N133","v":{"$error":"#REF!"}},0,0,0]
[null,null,"IG0769 Развивающая игра \"Топдесять, быстро\"","фото","видео","140*140*30",20,175,192,212,309,"Комплектность: 22 элемента (коробка из 2 элементов, 20 деталей).\nМатериал: Дерево с элементами из полиграфии.",4620070141524,null,{"$f":"#REF!*N134","v":{"$error":"#REF!"}},0,0,0]
[null,null,"IG0773 Развивающая игра \"Первый ребус\"","фото",null,"160*12*150           ",20,175,192,212,299,"\"Комплектность: 7 элементов (2 доски с буквами,4 набора бумажных карточек, мешочек ). \nМатериал: дерево с элементами из бумаги, текстильные материалы, бумага.\"           \n",4620070141579,null,{"$f":"#REF!*N135","v":{"$error":"#REF!"}},0,0,0]
[null,null,"IG0738 Магнитная рыбалка \"Ловись, рыбка\"","фото","видео","115*100*44",10,175,192,212,299,"Колличество элементов: 16 (коробка из 2 эл., 1 удочка, 13 деталей), материалы: дерево с элементами из бумаги, нитка, магнит, металлические шарики, пластик, пэт",4620070140985,null,{"$f":"#REF!*N136","v":{"$error":"#REF!"}},0,0,0]
[null,null,"IG0334 Пазл-палочки \"Птички\"","фото","видео","120*110*30(размер в упаковке), 105*13*3(размер элемента)",20,175,193,212,309,"Комплектность:42 элемента Материал: дерево с элементами из бумаги, полимерные материалы.",4631146798658,null,{"$f":"#REF!*N137","v":{"$error":"#REF!"}},0,0,0]
[null,null,"IG0780 Развивающая игра \"Сорвиголова Африка\"","фото","видео","285*140*3",15,122,134,147,219,"Комплектность:7 элементов Материал: дерево с элементами из бумаги, полимерные материалы, липучки.","4620070141654",null,{"$f":"#REF!*N138","v":{"$error":"#REF!"}},0,0,0]
[null,null,"IG0781 Развивающая игра \"Сорвиголова Семейка\"","фото","видео","285*140*3",15,122,134,147,219,"Комплектность:7 элементов Материал: дерево с элементами из бумаги, полимерные материалы, липучки.","4620070141661",null,{"$f":"#REF!*N139","v":{"$error":"#REF!"}},0,0,0]
[null,null,"IG0729 Развивающая игра \"Сорвиголова: Переполох в лесу\"","фото","видео","195*140*9",20,122,134,147,219,"Колличество элементов: 6 (1 доска, 5 деталей с липучками) \nматериалы: дерево с элементами из бумаги, липучки",4620070140909,null,{"$f":"#REF!*N140","v":{"$error":"#REF!"}},0,0,0]
[null,null,"IG0730 Развивающая игра \"Сорвиголова: Переполох на ферме\"","фото","видео","195*140*9",20,122,134,147,219,"Колличество элементов: 7 (1 доска, 5 деталей с липучками) \nматериалы: дерево с элементами из бумаги, липучки",4620070140916,null,{"$f":"#REF!*N141","v":{"$error":"#REF!"}},{"$f":"H141*N141","v":0},{"$f":"I141*N141","v":0},{"$f":"J141*N141","v":0}]
[null,null,"IG0380 Развивающая игра половинки \"Жители леса\"","фото","видео","110*145*24 (размер в упаковке), 80*60*3 (размер одной зверушки)",20,202,222,244,359,"Количество элементов:  20      \nМатериал: дерево с элементами из бумаги",4620070140367,null,{"$f":"#REF!*N142","v":{"$error":"#REF!"}},0,0,0]
[null,null,"IG0152 Развивающая игра \"Веселые половинки\"","фото","видео","110*145*24 (размер в упаковке), 80*60*3 (размер 1 зверушки)",20,202,222,244,359,"Количество элементов:  20      \nМатериал: дерево с элементами из бумаги",4631137476237,null,{"$f":"#REF!*N143","v":{"$error":"#REF!"}},0,0,0]
[null,null,"IG0396 Магнитная рыбалка \"Варим борщ\"","фото","видео","122*95*60",10,157,173,190,279,"Комплектность: 13 элементов. Материал: дерево с элементами из бумаги, полимерные и текстильные материалы, магниты.",4620070140541,null,{"$f":"#REF!*N144","v":{"$error":"#REF!"}},0,0,0]
[null,null,"IG0395 Магнитная рыбалка \"Варим компот\"","фото","видео","122*95*61",10,157,173,190,279,"Комплектность: 13 элементов. Материал: дерево с элементами из бумаги, полимерные и текстильные материалы, магниты.",4620070140510,null,{"$f":"#REF!*N145","v":{"$error":"#REF!"}},0,0,0]
[null,null,"IG0706 Развивающая игра с шестеренками и липучками \"Карусель\"","фото","видео","220*200*13",15,286,315,346,489,"Комплектность: 17 элементов (1 доска, 8 шестеренок, 8 животных).Материал: дерево с элементами из бумаги, полимерные материалы.",4620070140640,null,{"$f":"#REF!*N146","v":{"$error":"#REF!"}},0,0,0]
["ГОЛОВОЛОМКИ",null,null,null,null,null,null,null,null,null,null,null,null,null,{"$f":"#REF!*N147","v":{"$error":"#REF!"}},0,0,0]
[null,null,"IG0741 Развивающая игра \"Увлекательный автоконструктор\"","фото","видео","280*195*24",5,382,420,462,689,"Колличество элементов: 3 доски с 15 съёмными элементами. Дерево с элементами из бумаги",4620070141050,null,{"$f":"#REF!*N148","v":{"$error":"#REF!"}},0,0,0]
[null,null,"IG0707 Развивающая игра Досочки Сегена","фото","видео","135*100*70",10,274,301,331.5,499,"Комплектность: 37 элементов (коробка, 18 досочек с вкладышами)\nдерево с элементами из бумаги",4620070140671,null,{"$f":"#REF!*N149","v":{"$error":"#REF!"}},0,0,0]
[null,null,"IG0355 Головоломка \"Магнетта\"","фото","видео","200*200*16",20,302,332,366,550,"Комплектность: 2 элемента (планшет с подвижными деталями, магнитный держатель.",4620070140091,null,{"$f":"#REF!*N150","v":{"$error":"#REF!"}},0,0,0]
[null,null,"IG0381 Магнитная головоломка \"Замок на раз-два!\"","фото","видео","200*200*16",20,302,332,366,550,"Комплектность: 2 элемента (планшет с подвижными деталями, магнитный держатель.",4631139724329,null,{"$f":"#REF!*N151","v":{"$error":"#REF!"}},0,0,0]
[null,null,"IG0173 Головоломка \"Увлекательная головоломка\"","фото","видео","160*160*6",20,145,159,175,259,"Комплектность: 26 элементов ( 1 рамка вкладка, 25 вкладышей)\nМатериал: дерево с элементами из бумаги","4631139724329",null,{"$f":"#REF!*N152","v":{"$error":"#REF!"}},0,0,0]
[null,null,"IG0183 Головоломка “Пчелиные соты цветные”","фото","видео","200*200*6",20,202,222,244,359,"Комплектность: 24 элемента (1 рамка вкладка, 23 вкладыша)  \nМатериал: Дерево с элементами из бумаги","4631139922503",null,{"$f":"#REF!*N153","v":{"$error":"#REF!"}},0,0,0]
[null,null,"IG0292 Головоломка \"Пифагорка\"","фото","видео","95*95*25",20,237,261,287,429,"\nКомплектность: 15 элементов.\nМатериал: дерево с элементами из бумаги.","4631145428655",null,{"$f":"#REF!*N154","v":{"$error":"#REF!"}},0,0,0]
[null,null,"IG0348 Головоломка \"Планета\"","фото","видео","160*160*21",5,400,438,481,729,"Комплектность: 48 элементов.\nМатериал: дерево с элементами из бумаги.",4620070140022,null,{"$f":"#REF!*N155","v":{"$error":"#REF!"}},0,0,0]
[null,null,"IG0293 Головоломка \"Геометрика\"","фото","видео","105*165*25",20,202,222,244,359,"Комплектность: 26 элементов, Материал: дерево с элементами из бумаги.",4631145428662,null,{"$f":"#REF!*N156","v":{"$error":"#REF!"}},0,0,0]
["АЛФАВИТЫ И ЦИФРЫ",null,null,null,null,null,null,null,null,null,null,null,null,null,{"$f":"#REF!*N157","v":{"$error":"#REF!"}},0,0,0]
[null,null,"IG0767 Алфавит русский \"Узнайка\"","фото","видео","285*285*6",20,240.9,265,291.5,429,"Комплектность: 34 элемента (1 доска-основа, 33 детали).\nМатериал: Дерево с элементами из полиграфии.",4620070141500,null,{"$f":"#REF!*N158","v":{"$error":"#REF!"}},0,0,0]
[null,null,"IG0033 Алфавит русский «Животный мир»","фото","видео","145*110*30 (размер коробочки), 50*60*3 (средний размер буквы)",20,302,332,366,550,"Комплектность: 66 элементов в комбинированной коробке ( 33 буквы и 33 магнита )\nМатериал: дерево  с элементами из  бумаги , винил магнитный","4631136133100",null,{"$f":"#REF!*N159","v":{"$error":"#REF!"}},0,0,0]
[null,null,"IG0131 Алфавит русский \"Улитка\"","фото","видео","240*172*3",20,157,173,190,279,"Комплектность: 33 элемента в комбинированной коробке           \nМатериал: дерево с элементами из бумаги","4631137226726",null,{"$f":"#REF!*N160","v":{"$error":"#REF!"}},0,0,0]
[null,null,"IG0080 Магнитные цифры «Цифры»","фото","видео","75*110*25 (Размер упаковки), 50*70*3(средний размер цифры)",20,122,134,147,219,"Комплектность: 20 элементов ( 10 цифр,10 магнитов) в комбинированной коробке\n Материал: дерево с элементами из бумаги, винил магнитный",4631136686941,null,{"$f":"#REF!*N161","v":{"$error":"#REF!"}},0,0,0]
[null,null,"IG0277 Алфавит русский \"Звуки и буквы\"","фото","видео","285*285*7",20,202,222,244,359,"Комплектность: 34 элемента \n (33 буквы и 1 рамка-вкладка).\n \n Материал: дерево с элементами из бумаги.",4631143861867,null,{"$f":"#REF!*N162","v":{"$error":"#REF!"}},0,0,0]
["ПАЗЛЫ ",null,null,null,null,null,null,null,null,null,null,null,null,null,{"$f":"#REF!*N163","v":{"$error":"#REF!"}},0,0,0]
[null,null,"IG0783 Пазл «Мечты о море»","фото",null,"110*80*15",20,86.9,95.6,105,159,"Комплектность: 30 элементов (5 пазлов по 6 элементов), \nматериалы: дерево с элементами из бумаги",4620070141777,null,{"$f":"#REF!*N164","v":{"$error":"#REF!"}},0,0,0]
[null,null,"IG0784 Пазл «Вот это фрукт»","фото",null,"110*80*16",20,86.9,95.6,105,159,"Комплектность: 30 элементов (5 пазлов по 6 элементов), \nматериалы: дерево с элементами из бумаги",4620070141784,null,{"$f":"#REF!*N165","v":{"$error":"#REF!"}},0,0,0]
[null,null,"IG0785 Пазл «Утро в деревне»","фото",null,"110*80*17",20,86.9,95.6,105,159,"Комплектность: 30 элементов (5 пазлов по 6 элементов), \nматериалы: дерево с элементами из бумаги",4620070141791,null,{"$f":"#REF!*N166","v":{"$error":"#REF!"}},0,0,0]
[null,null,"IG0750 Пазл \"На пять\"","фото",null,"200*145*6",20,157,173,190,279,"Колличество элементов: 2 основы с выдавливающимися элементами, zip-пакет (древесина, полиграфия, целлофан)\n",4620070141166,null,{"$f":"#REF!*N167","v":{"$error":"#REF!"}},0,0,0]
[null,null,"IG0751 Развивающая игра \"Учимся считать\"","фото",null,"200*145*6",15,157,173,190,279,"Колличество элементов: 2 основы с выдавливающимися элементами, zip-пакет (древесина, полиграфия, целлофан)\n",4620070141210,null,{"$f":"#REF!*N168","v":{"$error":"#REF!"}},0,0,0]
[null,null,"IG0753 Пазл \"Удачная охота\"","фото",null,"200*200*6",20,157,173,190,279,"Комплектность: 24 элемента (1 доска-основа, 23 детали), \nматериалы: дерево с элементами из бумаги",4620070141265,null,{"$f":"#REF!*N169","v":{"$error":"#REF!"}},0,0,0]
[null,null,"IG0734 Пазл \"Где змея?\"","фото","видео","200*200*7",20,157,173,190,279,"Колличество элементов: 24 (1 доска-основа, 23 детали), \nматериалы: дерево с элементами из бумаги",4620070140954,null,{"$f":"#REF!*N170","v":{"$error":"#REF!"}},0,0,0]
[null,null,"IG0725  Пазл \"День рождения Акулёнка\"","фото","видео","140*200*3",20,65,71.400000000000006,78.5,119,"Колличество элементов: 12 (дерево с элементами из бумаги)",4620070140855,null,{"$f":"#REF!*N171","v":{"$error":"#REF!"}},0,0,0]
[null,null,"IG0726 Пазл \"Осенний портрет\"","фото","видео","140*200*3",20,65,71.400000000000006,78.5,119,"Колличество элементов: 12 (дерево с элементами из бумаги)",4620070140862,null,{"$f":"#REF!*N172","v":{"$error":"#REF!"}},0,0,0]
[null,null,"IG0743 Пазл \"Набор \"Малышам\"","фото",null,"140*200*6",10,131,145,160,239,"Комплектность: 24 элементов. Материал: дерево с элементами из бумаги.",4620070141081,null,{"$f":"#REF!*N173","v":{"$error":"#REF!"}},0,0,0]
[null,null,"IG0708 Пазл вкладыш \"Люблю машинки\"","фото","видео","255*215*6",20,202,222,244,359,"Комплектность: 12 элементов (1 рамка-вкладка, 11 вкладышей) Материал: дерево с элементами из бумаги.",4620070140688,null,{"$f":"#REF!*N174","v":{"$error":"#REF!"}},0,0,0]

{"sheet":"Распродажа","index":1,"n_rows":80,"n_cols":17,"rows_kept":80,"cut":false,"hidden":false,"merged":[[0,2,0,3],[71,2,71,3],[75,2,75,3],[5,2,5,3],[12,2,12,3],[41,2,41,3],[47,2,47,3],[58,2,58,3]]}
["Фото","Наименование","Медиа",null,"Размер мм. ","Шт в коробке","от 100 т.р.","от 10 т.р.","120+10%","РРЦ","Описание","Штрих.код","ЗАКАЗ"]
[null,"IG0700 Лабиринт Межполушарная доска с вкладками","фото","0,5% от дохода от","280*135*20",10,199,229,249,600,"Комплектность: 3 вкладки +планшет.\nМатериал: дерево с элементами из бумаги.",4620070140572]
[null,"IG0352 Лабиринт \"Полушарная доска №1\"","фото","видео","285*285*15",20,199,229,249,600,"Комплектность: 1 элемент (1 доска с подвижными фишками).\nМатериал: дерево с элементами из бумаги.",4620070140060]
[null,"IG0394 Межполушарные доски \"Моторика\" (набор 2 шт)","фото","видео","280*135*20 (размер одной доски)",5,259,299,319,729,"Комплектность: 4 элемента (2 доски с 2 подвижными фишками). Материал: дерево с элементами из бумаги, полимерные материалы. ",4620070140503]
[null,"IG0393 Межполушарные доски \"Концентрация\" (набор 2 шт)","фото","видео","280*135*20 (размер одной доски)",5,259,299,319,729,"Комплектность: 4 элемента (2 доски с 2 подвижными фишками). Материал: дерево с элементами из бумаги, полимерные материалы. ",4620070140497]
["Фото","Наименование","Медиа",null,"Размер мм. ","Шт в коробке","от 100 т.р.","от 10 т.р.","120+10%","РРЦ","Описание","Штрих.код"]
[null,"IG0082 Обучающая доска «Веселый календарь»","фото","видео","195*280*5",20,99,109,119,199,"Комплектность: 1 элемент (деревянный планшет с подвижными элементами)     \nМатериал: дерево с элементами из бумаги, полимерные материалы\n","4631136686965"]
[null,"IG0083 Обучающая доска «Времена года»","фото",null,"280*195*5",20,99,109,119,199,"Количество элементов: 3 элемента ( деревянный планшет и 2 вставочных элемента )\nМатериал: дерево с элементами из бумаги, полимерные материалы",4631136686972]
[null,"IG0117 Рамка-вкладка \"Учим Грибы\" Шугай","фото","видео","280*195",20,99,109,119,199,"Количество элементов:  7 (1 рамка вкладка, 5 вкладышей)\nМатериал: дерево с элементами из бумаги",4631136687313]
[null,"IG0118 Рамка-вкладка \"Варим суп\" Шугай","фото","видео","280*195",20,99,109,119,199,"Количество элементов:  7 (1 рамка вкладка, 5 вкладышей)\n Материал: дерево с элементами из бумаги",4631136687320]
[null,"IG0255 Обучающая доска \"Кошкин дом\"","фото","видео","285*285*5",20,159,175,192,365,"Комплектность: 2 элемента  (деревянный планшет с подвижными элементами и 1 вставочный элемент)         \nМатериал: дерево с элементами из бумаги, полимерные материалы\n","4631141926803"]
[null,"IG0399 Обучающая доска \"Часы и распорядок дня\"","фото","видео","285*285*5",20,159,175,192,365,"Количество элементов: 4 элемента (деревянный планшет и 4 вставочных элемента)\nМатериал: дерево с элементами из бумаги\n",4620070140565]
["Фото","Наименование","Медиа",null,"Размер мм. ","Шт в коробке","от 100 т.р.","от 10 т.р.","120+10%","РРЦ","Описание","Штрих.код"]
[null,"IG0373 Пазл \"Зимние забавы\"","фото","видео","140*100*3",20,25,27,29,69,"Комплектность: 6 элементов. Материал: дерево с элементами из бумаги.",4620070140183]
[null,"IG0374 Пазл \"Уютный вечер\"","фото","видео","100*140*3",20,25,27,29,69,"Комплектность: 6 элементов. Материал: дерево с элементами из бумаги.",4620070140220]
[null,"IG0076 Пазл 6 элементов «Счастливый поросёнок»","фото","видео","100*140*3",20,25,27,29,69,"Комплектность: 6 элементов. Материал: дерево с элементами из бумаги.","4631136686903"]
[null,"IG0043 Пазл \"Черепашка в отпуске\"","фото","видео","100*140*3",20,25,27,29,69,"Комплектность: 6 элементов. Материал: дерево с элементами из бумаги.","4631136133193"]
[null,"IG0042 Мини-пазл \"Медвежонок и мед\"","фото","видео","100*140*3",20,25,27,29,69,"Комплектность: 6 элементов. Материал: дерево с элементами из бумаги.","4631136133186"]
[null,"IG0044 Мини-пазл \"Принцесса\"","фото","видео","100*140*3",20,25,27,29,69,"Комплектность: 6 элементов. Материал: дерево с элементами из бумаги.","4631136133209"]
[null,"IG0065 Пазл 6 элементов «Кораблик»","фото","видео","100*140*3",20,25,27,29,69,"Комплектность: 6 элементов. Материал: дерево с элементами из бумаги.","4631136867128"]
[null,"IG0066 Пазл 6 элементов \"Лев\"","фото","видео","100*140*3",20,25,27,29,69,"Комплектность: 6 элементов. Материал: дерево с элементами из бумаги.","4631136359685"]
[null,"IG0040 Мини-пазл \"Бегемотик\"","фото","видео","100*140*3",20,25,27,29,69,"Комплектность: 6 элементов. Материал: дерево с элементами из бумаги.","4631136133179"]
[null,"IG0063 Мини-пазл \"Жираф\"","фото","видео","100*140*3",20,25,27,29,69,"Комплектность: 6 элементов. Материал: дерево с элементами из бумаги.","4631136359678"]
[null,"IG0064 Пазл 6 элементов «Зебра»","фото","видео","100*140*3",20,25,27,29,69,"Комплектность: 6 элементов. Материал: дерево с элементами из бумаги.","4631136867111"]
[null,"IG0067 Пазл \"Машинка\"","фото","видео","100*140*3",20,25,27,29,69,"Комплектность: 6 элементов. Материал: дерево с элементами из бумаги.","4631136867142"]
[null,"IG0074 Пазл 6 элементов «Курица и радуга»","фото","видео","100*140*3",20,25,27,29,69,"Комплектность: 6 элементов. Материал: дерево с элементами из бумаги.","4631136686880"]
[null,"IG0075 Пазл 6 элементов «Корова на лугу»","фото","видео","100*140*3",20,25,27,29,69,"Комплектность: 6 элементов. Материал: дерево с элементами из бумаги.","4631136686897"]
[null,"IG0710 Пазл фигурный \"Подарок для тигренка\"","фото","видео","280*198*6",20,50,70,70,182,"Комплектность: 51 элемент (1 рамка-вкладка, 50 вкладышей)\nМатериал: дерево с элементами из бумаги",4620070140701]
[null,"IG0711 Пазл фигурный \"Рождественские гулянья\"","фото","видео","280*198*6",20,50,70,70,182,"Комплектность: 51 элемент (1 рамка-вкладка, 50 вкладышей)\nМатериал: дерево с элементами из бумаги",4620070140718]
[null,"IG0712 Пазл фигурный \"Полосатый сюрприз\"","фото","видео","280*198*6",20,50,70,70,182,"Комплектность: 51 элемент (1 рамка-вкладка, 50 вкладышей)\nМатериал: дерево с элементами из бумаги",4620070140732]
[null,"IG0184 Пазл “Улитка”","фото","видео","195*280*6",20,99,109,119,199,"Количество элементов: 34  \nМатериал: дерево с элементами из бумаги",4631139922510]
[null,"IG0714 Фигурный пазл \"Волшебная поляна\"","фото","видео","280*198*7",20,159,175,192,365,"Комплектность: 51 элемент (1 рамка-вкладка, 50 вкладышей)\nМатериал: дерево с элементами из бумаги",4620070140824]
[null,"IG0709 Пазл вкладыш \"Собачьи радости\"","фото","видео","270*275*6",20,159,175,192,365,"Комплектность: 16 элементов (1 рамка-вкладка, 15 вкладышей) Материал: дерево с элементами из бумаги.",4620070140664]
[null,"IG0713 Фигурный пазл \"Единорожка на луне\"","фото","видео","280*198*6",20,159,175,192,365,"Комплектность: 51 элемент (1 рамка-вкладка, 50 вкладышей)\nМатериал: дерево с элементами из бумаги",4620070140817]
[null,"IG0701 Фигурный Пазл \"Пляжная мода\" 34 элемента","фото","видео","91*91*95(размер в упаковке) ",15,159,175,192,365,"Деталей в коробке 34шт. Материал: дерево с элементами из бумаги",4620070140589]
[null,"IG0702 Фигурный Пазл \"Одни дома\" 34 элемента","фото","видео","91*91*95(размер в упаковке) ",15,159,175,192,365,"Деталей в коробке 34шт. Материал: дерево с элементами из бумаги",4620070140602]
[null,"IG0703 Фигурный Пазл \"Лучшие друзья\"34 элемента","фото","видео","91*91*95(размер в упаковке) ",15,159,175,192,365,"Деталей в коробке 34шт. Материал: дерево с элементами из бумаги",4620070140619]
[null,"IG0704 Фигурный Пазл \"Прятки-котятки\" 34 элемента","фото","видео","91*91*95(размер в упаковке) ",15,159,175,192,365,"Деталей в коробке 34шт. Материал: дерево с элементами из бумаги",4620070140626]
[null,"IG0296 Пазл \"Цвета\"","фото","видео","200*200*15",10,159,175,192,365,"Комплектность: 20 элементов.\nМатериал: дерево с элементами из бумаги, полимерные материалы, текстильные материалы, металлическая фурнитура.",4620070140657]
[null,"IG0360 Пазл-палочки \"Грибы\"","фото","видео","120*110*30(размер в упаковке), 105*13*3(размер элемента)",20,159,175,192,365,"Комплектность:42 элемента Материал: дерево с элементами из бумаги, полимерные материалы.",4620070140169]
[null,"IG0723 Пазл «Фигурный пазл «Чудо-остров»","фото","видео","200*145*40",5,259,299,319,729,"Комплектность: 102 элемента (коробка из 2 деталей и 100 деталей пазл) Материал: дерево с элементами из бумаги",4620070140831]
["Фото","Наименование","Медиа",null,"Размер мм. ","Шт в коробке","от 100 т.р.","от 10 т.р.","120+10%","РРЦ","Описание","Штрих.код"]
[null,"IG0336 Лабиринт \"Спец.Транспорт\"","фото","видео","280*195*15",20,159,175,192,365,"\n Комплектность: 1 элемент (доска с подвижными фишками).\n Материал: дерево с элементами из бумаги, полимерные материалы.",4631146798672]
[null,"IG0280 Лабиринт \"Африка\"","фото","видео","280*195*15.",20,159,175,192,365,". Комплектность: 7 элементов ( доска с подвижными фишками и 6 бумажных карточек). Материал: дерево с элементами из бумаги, полимерные материалы.",4631144648757]
[null,"IG0281 Лабиринт \"Лимпопо\"","фото","видео","280*195*15.",20,159,175,192,365,". Комплектность: 7 элементов ( доска с подвижными фишками и 6 бумажных карточек). Материал: дерево с элементами из бумаги, полимерные материалы.",4631144648764]
[null,"IG0282 Лабиринт \"Остров сокровищ\"","фото","видео","280*195*15.",20,159,175,192,365,"Размер: 280*195*15. Комплектность: 7 элементов ( доска с подвижными фишками и 6 бумажных карточек). Материал: дерево с элементами из бумаги, полимерные материалы.",4631144648771]
[null,"IG0194 Лабиринт с шариком \"В облаках\"","фото","видео","220*200*9",20,159,175,192,365,"Количество элементов: 1 (шарик, двигающийся по пазам) \n Материал: дерево с элементами из бумаги\n",4631140325386]
["Фото","Наименование","Медиа",null,"Размер мм. ","Шт в коробке","от 100 т.р.","от 10 т.р.","120+10%","РРЦ","Описание","Штрих.код"]
[null,"IG0062 Шнуровка \"Домик\"","фото","видео","210*165*6",20,89,99,109,199,"Комплектность: 7 элементов  (основа, 5 накладных элементов, шнурок). Материал: дерево с элементами из бумаги, текстиль.","4631136867098"]
[null,"IG0390 Шнуровка \"Рыбка\"","фото","видео","290*140*3",20,89,99,109,199,"Комплектность: 2 элемента (1 основа с извлекаемыми деталями, 1 шнурок.",4620070140466]
[null,"IG0391 Шнуровка \"Ящерка\"","фото","видео","290*140*3",20,89,99,109,199,"Комплектность: 2 элемента (1 основа с извлекаемыми деталями, 1 шнурок.",4620070140473]
[null,"IG0398 Шнуровка \"Птичка\"","фото","видео","290*140*3",20,89,99,109,199,"Комплектность: 2 элемента (1 основа с извлекаемыми деталями, 1 шнурок.",4620070140527,null,null,null,null," "]
[null,"IG0372 Шнуровка \"Стрекоза\"","фото","видео","290*140*3",20,89,99,109,199,"Комплектность: 2 элемента (1 основа с извлекаемыми деталями, 1 шнурок.",4620070140305]
[null,"IG0172 Шнуровка \"Ёлочка\"","фото","видео","220*180*6",20,89,99,109,199,"Комплектность: 7 элементов  (основа, 5 накладных элемента, шнурок). Материал: дерево с элементами из бумаги, текстиль.","4631139724312"]
[null,"IG0368 Шнуровка \"Веселые монстрики Гоша Горынович\"","фото","видео","290*140*3",20,89,99,109,199,"Комплектность: 2 элемента (1 основа с извлекаемыми деталями, 1 шнурок.",4620070140268]
[null,"IG0369 Шнуровка \"Веселые монстрики  Тоша Тритонович\"","фото","видео","290*140*3",20,89,99,109,199,"Комплектность: 2 элемента (1 основа с извлекаемыми деталями, 1 шнурок.",4620070140275]
[null,"IG0370 Шнуровка \"Веселые монстрики  Мирон Мохнатыч\"","фото","видео","290*140*3",20,89,99,109,199,"Комплектность: 2 элемента (1 основа с извлекаемыми деталями, 1 шнурок.",4620070140282]
[null,"IG0375 Шнуровка \"Веселые монстрики Няшка Монстряшка\"","фото","видео","290*140*3",20,89,99,109,199,"Комплектность: 2 элемента (1 основа с извлекаемыми деталями, 1 шнурок.",4620070140312]
["Фото","Наименование","Медиа",null,"Размер мм. ","Шт в коробке","от 100 т.р.","от 10 т.р.","120+10%","РРЦ","Описание","Штрих.код"]
[null,"IG0079 Алфавит русский \"Животные\"","фото","видео","75*110*25 (Размер упаковки), 30*30*3 (средний размер буквы)",20,159,175,192,365,"Комплектность: 66 элементов в комбинированной коробке ( 33 буквы и 33 магнита )\nМатериал: дерево  с элементами из  бумаги , винил магнитный","4631136686934"]
[null,"IG0127 Алфавит русский \"Пазл\"","фото","видео","110*145*38 (размер в упаковке), 55*45*3 (один элемент)",20,159,175,192,365,"Комплектность: 66 элементов в комбинированной коробке\nМатериал: дерево  с элементами из  бумаги , винил магнитный",4631137226689]
[null,"IG0260 Пазл \"Парочки\"","фото","видео","37*48*3 (Размер 1 элемента), 75*110*28 (Размер упаковки) ",20,159,175,192,365,"Комплектность: 24 элемента в комбинированной коробке\nМатериал: дерево с элементами из бумаги",4631142067000]
[null,"IG0106 Развивающая игра \"Домино \"Морское\"","фото","видео","110*145*30 (размер в упаковке), 85*45*3 (один элемент)",20,159,175,192,365,"Комплектность:  14 элементов в комбинированной коробке           \nМатериал: дерево с элементами из бумаги","4631136687207"]
[null,"IG0153 Развивающая игра \"Домино Тропические животные\"","фото","видео","110*145*30 (размер в упаковке), 85*45*3 (размер элемента)",20,159,175,192,365,"Комплектность: 24 элемента в комбинированной коробке        \nМатериал: дерево с элементами из бумаги","4631137476244"]
[null,"IG0155 Развивающая игра \"Мемори\"","фото","видео","110*145*30(размер в упаковке), 40*40*3 (размер элемента)",20,159,175,192,365,"Комплектность: 32 элемента в комбинированной коробке     \nМатериал: Дерево с элементами из бумаги","4631137476268"]
[null,"IG0104 Развивающая игра \"Мемори\"","фото","видео","110*145*30(размер в упаковке), 46*46*3 (один элемент)",20,159,175,192,365,"Комплектность: 32 элемента в комбинированной коробке     \nМатериал: Дерево с элементами из бумаги","4631136687184"]
[null,"IG0105 Развивающая игра \"Домино Животные\"","фото",null,"85*45 (одна деталь)",20,138.5,152.5,167.5,249,"Количество элементов:  15     \nМатериал: дерево с элементами из бумаги",4631136687191]
[null,"IG0198 Цифры \"Цветные\"","фото","видео","45*55 (средний размер цифры)",20,159,175,192,365,"Количество элементов: 70 элементов (35 элементов, 35 магнитов )\nМатериал: дерево с элементами из бумаги, магниты",4631140325423]
[null,"IG0248 Развивающая игра \"Посчитай-ка\" пазл","фото","видео","110*145*28 (размер в упаковке), 55*45*3 (один элемент)",20,159,175,192,365,"Комплектность: 40 элементов в комбинированной коробке\n\nМатериал: дерево с элементами из бумаги","4631141654959"]
[null,"IG0331 Развивающая игра \"Лотошка: Лукошко\"","фото","видео","170*90*75(размер в упаковке), 35*35*3 (одина фишка)",20,159,175,192,365,"Комплектность:73 элемента (64 фишки, 8 бумажных карточек, 1 мешочек)                                           Материал: дерево с элементами из бумаги, текстильные материалы.","4631145561949"]
[null,"IG0103 Развивающая игра\" Придумай зверюшку\" в коробке","фото","видео","110*145*28 (размер в упаковке), 110*50 (размер одной зверушки)",20,159,175,192,365,"Количество элементов:  14 героев, 42 элемента в комбинированной коробке            \nМатериал: дерево с элементами из бумаги",4631136687177]
["Фото","Наименование","Медиа",null,"Размер мм. ","Шт в коробке","от 100 т.р.","от 10 т.р.","120+10%","РРЦ","Описание","Штрих.код"]
[null,"IG0359 Развивающая игра \"Кукольный домик \"Фазенда\"","фото","видео","215*220*180 (в собранном виде)",10,199,229,249,600,"Уютный кукольный домик из дерева. Все детали тщательно обработаны, домик собирается легко без клея, весь необходимый крепеж в комплекте. \nСобранный домик можно поднимать и переносить, размещать внутри игрушечную мебель, небольших кукол или пупсов. \nЦвет и текстура натурального дерева легко впишется в интерьер деткой комнаты, при желании, домик можно раскрасить или создать собственный дизайн комнат и фасадов. \n",4620070140145]
[null,"IG0328 Бизиборд \"Парковка\"","фото","видео","330*420*290, (330*785*290 с пандусом)",2,990,1190,1390,2999,"Комплектность: 168 деталей. Материал: дерево с элементами из бумаги, металла, текстиля, полимерных материалов,металлической фурнитуры.","4631145556259"]
[null,"IG0273 Бизиборд \"Я-хозяюшка\"","фото","видео","420*290*370",2,1990,2290,2590,3999,"Комплектность: 30 элементов ( 5 игровых панелей, 16+1 фиксаторов для сборки, 9 съёмных элементов). Материал: дерево с элементами из бумаги, полимерный материал,текстильные материалы, металлическая фурнитура.","4631143756743"]
["Фото","Наименование","Медиа",null,"Размер мм. ","Шт в коробке","от 100 т.р.","от 10 т.р.","120+10%","РРЦ","Описание","Штрих.код"]
[null,"IG0018 Рамка-вкладка \"Рыбалка\" 2","фото","видео","285*160*6",20,159,175,192,365,"Комплектность: 7 элементов: 1 рамка вкладка, 5 вкладышей, 1 удочка. Материал: дерево с элементами из бумаги, магнит, шнурок, металл.","4631136105763"]
[null,"IG0602 Развивающая игра \"Кубики-Счётики\"","фото","видео","40*40*40 (размер 1 кубика), 80*6*6 (размер 1 палочки",10,291.5,320,352,499,"Комплектность: 51 элемент ( 6 кубиков, 45 палочек). Материал: дерево с элементами из полимерных материалов",4620070141227]
[null,"IG0606 Головоломка \"Пирамида\"","фото","видео","90*90*115",10,368,405,445,599,"Комплектность: 6 элементов. Материал: дерево с элементами из полимерных материалов.",4620070141234]
[null,"IG0608 Развивающая игра \"Кубики-Буквики\"","фото","видео","40*40*40 (размер 1 кубика)",5,368,405,445,599,"Комплектность: 12 элементов. Материал: дерево с элементами из полимерных материалов",4620070141241]